bitfinex-derivatives/quotes_BTCF0:USTF0_20250719
["timestamp","ask_amount","ask_price","bid_price","bid_amount"]
[1752962603720,0.3092742,117680.0,117670.0,1.19775084]
[1752962604225,0.3092742,117680.0,117670.0,1.19975084]
[1752962604421,0.3092742,117680.0,117670.0,1.26910544]
[1752962609521,0.3092742,117680.0,117670.0,1.34530188]
[1752962610927,0.3092742,117680.0,117670.0,1.17373733]
[1752962611128,0.3419842,117680.0,117670.0,1.17373733]
[1752962611319,0.3419842,117680.0,117670.0,1.34530188]
[1752962612328,0.4048142,117680.0,117670.0,1.34530188]
[1752962615733,0.4048142,117680.0,117670.0,1.17373733]
[1752962615930,0.4048142,117680.0,117670.0,1.34530188]
[1752962617128,0.4048142,117680.0,117670.0,1.17542318]
[1752962617336,0.4048142,117680.0,117670.0,1.34530578]
[1752962617534,0.93717875,117680.0,117670.0,0.51910403]
[1752962617834,0.94637875,117680.0,117670.0,0.67389742]
[1752962618029,1.30717875,117680.0,117670.0,0.65505983]
[1752962618235,0.94637875,117680.0,117670.0,0.65505983]
[1752962618432,1.30717875,117680.0,117670.0,0.65505983]
[1752962618633,0.94637875,117680.0,117670.0,0.65505983]
[1752962618830,0.94737875,117680.0,117670.0,0.65405983]
[1752962619738,0.7768142,117680.0,117670.0,0.65305983]
[1752962619935,0.94837875,117680.0,117670.0,0.67385243]
[1752962620438,0.94837875,117680.0,117670.0,0.14316983]
[1752962622338,0.94837875,117680.0,117670.0,0.31305243]
[1752962622537,0.94837875,117680.0,117670.0,0.14316983]
[1752962623942,0.94837875,117680.0,117670.0,0.31305243]
[1752962625742,0.94837875,117680.0,117670.0,0.08211]
[1752962626144,0.94837875,117680.0,117670.0,0.2519926]
[1752962629247,0.94837875,117680.0,117670.0,0.08211]
[1752962630442,0.94837875,117680.0,117670.0,0.2519927]
[1752962631746,0.7768142,117680.0,117670.0,0.2519927]
[1752962632049,0.94837875,117680.0,117670.0,0.2519927]
[1752962632748,0.94837875,117680.0,117670.0,0.08211]
[1752962632949,0.94837875,117680.0,117670.0,0.03005]
[1752962633745,0.94837875,117680.0,117670.0,0.1999327]
[1752962634149,0.94837875,117680.0,117670.0,0.03005]
[1752962635752,0.94837875,117680.0,117670.0,0.1999326]
[1752962638254,0.94837875,117680.0,117670.0,0.03005]
[1752962638754,0.4103826,117670.0,117660.0,1.48289128]
[1752962639054,0.4103826,117670.0,117660.0,1.79289128]
[1752962642450,0.42773459,117670.0,117660.0,1.57885263]
[1752962642949,0.42773459,117670.0,117660.0,1.75041718]
[1752962643556,0.42773459,117670.0,117660.0,1.68935735]
[1752962643852,0.42773459,117670.0,117660.0,1.76555379]
[1752962644744,0.42773459,117670.0,117660.0,1.81744379]
[1752962645155,0.42773459,117670.0,117660.0,1.64587924]
[1752962645356,0.42773459,117670.0,117660.0,1.81744379]
[1752962647157,0.42773459,117670.0,117660.0,1.64688325]
[1752962647454,0.59929914,117670.0,117660.0,0.98505]
[1752962648048,0.1698971,117660.0,117650.0,0.69198029]
[1752962648252,0.1698971,117660.0,117650.0,1.71607029]
[1752962648253,0.2625571,117660.0,117650.0,1.71607029]
[1752962648556,0.4103971,117660.0,117650.0,1.71607029]
[1752962648756,0.4103971,117660.0,117650.0,1.76796029]
[1752962649255,0.4103971,117660.0,117650.0,1.76896029]
[1752962649556,0.4103971,117660.0,117650.0,1.76996029]
[1752962650459,0.4103971,117660.0,117650.0,1.94152484]
[1752962652556,0.4103971,117660.0,117650.0,1.94139379]
[1752962654763,0.4103971,117660.0,117650.0,1.94152484]
[1752962654959,0.4103971,117660.0,117650.0,1.8653284]
[1752962655261,0.4103971,117660.0,117650.0,1.2741284]
[1752962655461,0.4103971,117660.0,117650.0,1.8654484]
[1752962656854,0.4103971,117660.0,117650.0,1.97212342]
[1752962658363,0.4103971,117660.0,117650.0,1.61132342]
[1752962658662,0.4103971,117660.0,117650.0,2.2262484]
[1752962659060,0.4103971,117660.0,117650.0,2.33292342]
[1752962661165,0.4103971,117660.0,117650.0,2.40928735]
[1752962661465,0.4103971,117660.0,117650.0,2.30261233]
[1752962663368,0.4103971,117660.0,117650.0,2.13104778]
[1752962663567,0.4103971,117660.0,117650.0,2.30261233]
[1752962663867,0.4103971,117660.0,117650.0,2.1949484]
[1752962664062,0.89196165,117660.0,117650.0,0.00213105]
[1752962664269,0.89196165,117660.0,117650.0,0.7299498]
[1752962664465,0.89196165,117660.0,117650.0,0.65358587]
[1752962664660,1.25276165,117660.0,117650.0,0.65358587]
[1752962664859,1.25276165,117660.0,117650.0,0.00213105]
[1752962665062,1.33878492,117660.0,117650.0,0.00213105]
[1752962665668,1.3568055,117660.0,117650.0,0.00213105]
[1752962666168,1.33878492,117660.0,117650.0,0.00213105]
[1752962666971,1.25292507,117660.0,117650.0,0.00213105]
[1752962685078,1.0811971,117660.0,117650.0,0.00213105]
[1752962685282,1.25292507,117660.0,117650.0,0.00213105]
[1752962686982,1.33879584,117660.0,117650.0,0.00213105]
[1752962688387,0.3966144,117640.0,117630.0,0.00841385]
[1752962688579,0.3966144,117640.0,117620.0,0.85850597]
[1752962688580,0.2495789,117630.0,117620.0,0.85850597]
[1752962688783,0.52542827,117630.0,117620.0,0.81601797]
[1752962689081,0.52542827,117630.0,117620.0,0.07673]
[1752962689385,0.52542827,117630.0,117620.0,0.13767556]
[1752962690188,0.52542827,117630.0,117620.0,0.26647493]
[1752962690484,0.52642827,117630.0,117620.0,0.27247493]
[1752962691087,0.52642827,117630.0,117620.0,0.28109308]
[1752962691794,0.3976289,117630.0,117620.0,0.28109308]
[1752962692087,0.52642827,117630.0,117620.0,0.28109308]
[1752962692685,0.52642827,117630.0,117620.0,0.28509308]
[1752962692884,0.3976289,117630.0,117620.0,0.28509308]
[1752962693085,0.3976289,117630.0,117620.0,0.27909308]
[1752962693086,0.52542827,117630.0,117620.0,0.27909308]
[1752962693291,0.52642827,117630.0,117620.0,0.27909308]
[1752962693592,0.52642827,117630.0,117620.0,0.45204398]
[1752962694289,0.52642827,117630.0,117620.0,0.28209308]
[1752962694994,0.52642827,117630.0,117620.0,0.45204398]
[1752962696389,0.52642827,117630.0,117620.0,0.28209308]
[1752962698893,0.3976289,117630.0,117620.0,0.28209308]
[1752962699194,0.52642827,117630.0,117620.0,0.28209308]
[1752962700490,0.3976289,117630.0,117620.0,0.28209308]
[1752962700694,0.52642827,117630.0,117620.0,0.28209308]
[1752962702895,0.52642827,117630.0,117620.0,0.45204398]
[1752962703995,0.52642827,117630.0,117620.0,0.28209308]
[1752962705896,0.84642827,117630.0,117620.0,0.28209308]
[1752962706093,0.3976289,117630.0,117620.0,0.28209308]
[1752962706292,0.89642827,117630.0,117620.0,0.28209308]
[1752962706491,0.52642827,117630.0,117620.0,0.28209308]
[1752962706696,0.87642827,117630.0,117620.0,0.28209308]
[1752962706994,0.52642827,117630.0,117620.0,0.28209308]
[1752962708400,0.52642827,117630.0,117620.0,0.15329371]
[1752962708601,1.26722827,117630.0,117620.0,0.15329371]
[1752962708802,0.90642827,117630.0,117620.0,0.07656371]
[1752962709100,1.98502764,117630.0,117620.0,0.07656371]
[1752962709399,1.98502764,117630.0,117620.0,0.007]
[1752962710296,1.98402764,117630.0,117620.0,0.003]
[1752962710501,1.98402764,117630.0,117620.0,0.006]
[1752962710801,1.98402764,117630.0,117620.0,0.003]
[1752962711001,1.98402764,117630.0,117620.0,0.005]
[1752962715100,1.98402764,117630.0,117620.0,0.06594556]
[1752962715802,1.98402764,117630.0,117620.0,0.005]
[1752962717007,1.98402764,117630.0,117620.0,0.004]
[1752962717502,1.98402764,117630.0,117620.0,0.002]
[1752962717708,1.98402764,117630.0,117620.0,0.003]
[1752962717904,2.00204406,117630.0,117620.0,0.003]
[1752962718408,2.00204187,117630.0,117620.0,0.003]
[1752962721008,2.01071536,117630.0,117620.0,0.003]
[1752962721307,2.01071536,117630.0,117620.0,1e-07]
[1752962721610,2.00203508,117630.0,117620.0,1e-07]
[1752962723212,1.98402764,117630.0,117620.0,1e-07]
[1752962725112,1.99263269,117630.0,117620.0,1e-07]
[1752962725812,2.01063009,117630.0,117620.0,1e-07]
[1752962726314,2.00202504,117630.0,117620.0,1e-07]
[1752962729117,1.75284378,117630.0,117620.0,1e-07]
[1752962729318,2.00202504,117630.0,117620.0,1e-07]
[1752962732622,2.01053676,117630.0,117620.0,1e-07]
[1752962733723,2.00202504,117630.0,117620.0,1e-07]
[1752962735422,0.86342567,117630.0,117620.0,0.0681001]
[1752962735618,1.81234567,117630.0,117620.0,0.0681001]
[1752962735824,1.79434827,117630.0,117620.0,0.0681001]
[1752962736118,0.7166289,117630.0,117620.0,0.36685037]
[1752962736318,0.4966289,117630.0,117620.0,1.26036974]
[1752962736519,0.88542827,117630.0,117620.0,1.20251593]
[1752962736713,0.88542827,117630.0,117620.0,0.84171593]
[1752962737222,0.88542827,117630.0,117620.0,0.71291656]
[1752962737422,0.88542827,117630.0,117620.0,0.84171593]
[1752962739021,0.88542827,117630.0,117620.0,1.20251593]
[1752962740822,0.88542827,117630.0,117620.0,0.84171593]
[1752962741125,0.88542827,117630.0,117620.0,1.20251593]
[1752962742325,0.60542827,117630.0,117620.0,1.20251593]
[1752962743826,0.60542827,117630.0,117620.0,0.85251593]
[1752962744022,0.60542827,117630.0,117620.0,0.83251593]
[1752962744222,0.60542827,117630.0,117620.0,0.72371656]
[1752962744425,0.60542827,117630.0,117620.0,1.31179656]
[1752962745324,0.60542827,117630.0,117620.0,1.44059593]
[1752962745820,0.60542827,117630.0,117620.0,1.07979593]
[1752962746022,0.60542827,117630.0,117620.0,1.44059593]
[1752962749127,0.60542827,117630.0,117620.0,1.42059593]
[1752962749331,0.60542827,117630.0,117620.0,1.77059593]
[1752962751530,0.1699389,117630.0,117620.0,1.83844974]
[1752962751730,0.3899993,117640.0,117630.0,0.2338865]
[1752962752032,0.72879867,117640.0,117630.0,1.1461771]
[1752962752626,0.515022,117640.0,117630.0,1.1461771]
[1752962752832,0.40725563,117650.0,117640.0,0.233872]
[1752962753033,0.72725563,117650.0,117640.0,1.86297717]
[1752962754332,0.18237943,117650.0,117640.0,1.80192074]
[1752962754534,0.32228703,117650.0,117640.0,1.87828467]
[1752962754935,0.32228703,117650.0,117640.0,1.79235287]
[1752962755136,0.32528703,117650.0,117640.0,1.79335287]
[1752962755338,0.32528703,117650.0,117640.0,1.71698894]
[1752962755842,0.32328703,117650.0,117640.0,1.71698894]
[1752962756135,0.01827943,117650.0,117640.0,1.71698894]
[1752962756339,0.1351,117660.0,117650.0,0.2754676]
[1752962756540,0.3049931,117660.0,117650.0,1.21888781]
[1752962758544,0.3059931,117660.0,117650.0,1.28524868]
[1752962758944,0.1361,117660.0,117650.0,1.28524868]
[1752962759139,0.001,117660.0,117650.0,1.28524868]
[1752962759643,0.44976039,117670.0,117660.0,0.2338431]
[1752962759644,0.53884039,117670.0,117660.0,0.2338431]
[1752962759844,0.53884039,117670.0,117660.0,1.74584004]
[1752962759845,0.82636739,117670.0,117660.0,1.74584004]
[1752962760045,0.82636739,117670.0,117660.0,1.80679331]
[1752962760243,0.57153199,117670.0,117660.0,1.80679331]
[1752962760547,0.3899112,117680.0,117670.0,0.2754387]
[1752962760747,0.8389912,117680.0,117670.0,1.14660659]
[1752962760941,0.8389912,117680.0,117670.0,0.78580659]
[1752962761244,0.8389912,117680.0,117670.0,1.14660659]
[1752962762247,0.7540557,117680.0,117670.0,1.14660659]
[1752962762446,0.6649642,117680.0,117670.0,1.14660659]
[1752962762645,0.6659642,117680.0,117670.0,1.14660659]
[1752962762846,0.6967942,117680.0,117670.0,1.14660659]
[1752962763043,0.7550442,117680.0,117670.0,1.14660659]
[1752962763237,0.3950442,117680.0,117670.0,1.14660659]
[1752962763442,0.5250442,117680.0,117670.0,1.14660659]
[1752962764546,0.5250442,117680.0,117670.0,1.15511481]
[1752962776264,0.2661,117680.0,117670.0,1.15511481]
[1752962777064,0.4359645,117680.0,117670.0,1.15511481]
[1752962777561,0.5250445,117680.0,117670.0,1.15511481]
[1752962778566,0.5240445,117680.0,117670.0,1.15611481]
[1752962780660,0.35418,117680.0,117670.0,1.15611481]
[1752962781457,0.3057219,117690.0,117680.0,0.2300945]
[1752962781657,0.13587,117690.0,117680.0,1.69929144]
[1752962782663,0.13687,117690.0,117680.0,1.69929144]
[1752962782865,0.13687,117690.0,117680.0,1.75997437]
[1752962784463,0.001,117690.0,117680.0,1.75997437]
[1752962785367,0.06881,117690.0,117680.0,1.75997437]
[1752962785759,0.11715,117690.0,117680.0,1.75997437]
[1752962786158,0.13687,117690.0,117680.0,1.75997437]
[1752962793871,0.13687,117690.0,117680.0,1.93164131]
[1752962794076,0.08548417,117700.0,117690.0,0.2756401]
[1752962794279,0.40548417,117700.0,117690.0,1.16810704]
[1752962794679,0.10548417,117700.0,117690.0,1.16810704]
[1752962795483,0.10748417,117700.0,117690.0,1.16910704]
[1752962795780,0.08748417,117700.0,117690.0,0.9974401]
[1752962795978,0.15529417,117700.0,117690.0,1.16910704]
[1752962796280,0.15529417,117700.0,117690.0,1.22978997]
[1752962796576,0.15629417,117700.0,117690.0,1.22978997]
[1752962797477,0.41583987,117700.0,117690.0,1.05812303]
[1752962797779,0.41583987,117700.0,117690.0,1.22978997]
[1752962798179,0.24600417,117700.0,117690.0,1.22978997]
[1752962799078,0.15629417,117700.0,117690.0,1.22978997]
[1752962799581,0.02042417,117700.0,117690.0,1.24494681]
[1752962800486,0.02042417,117700.0,117690.0,1.16910704]
[1752962803484,0.13887,117700.0,117690.0,1.18819818]
[1752962805180,0.13887,117700.0,117690.0,1.26403795]
[1752962805772,0.13887,117700.0,117690.0,1.18819818]
[1752962806277,0.11915,117700.0,117690.0,1.18819818]
[1752962808083,0.13887,117700.0,117690.0,1.18819818]
[1752962808383,0.13887,117700.0,117690.0,1.26403795]
[1752962812785,0.13887,117700.0,117690.0,1.09237101]
[1752962812986,0.13887,117700.0,117690.0,1.26403795]
[1752962814990,0.13887,117700.0,117690.0,1.34961501]
[1752962815384,0.13887,117700.0,117690.0,1.27377524]
[1752962815789,0.13887,117700.0,117690.0,1.3498525]
[1752962823495,0.13887,117700.0,117690.0,1.27377524]
[1752962825995,0.13887,117700.0,117690.0,1.34989945]
[1752962832802,0.13887,117700.0,117690.0,1.09265545]
[1752962833100,0.13887,117700.0,117690.0,1.34989945]
[1752962833902,0.13887,117700.0,117690.0,1.38045026]
[1752962835502,0.13887,117700.0,117690.0,1.27377524]
[1752962838004,0.13887,117700.0,117690.0,1.38045026]
[1752962840100,0.3036729,117730.0,117720.0,0.2325973]
[1752962840301,0.6536729,117730.0,117720.0,1.32882642]
[1752962840502,0.6536729,117730.0,117720.0,1.49863372]
[1752962840703,0.8013749,117730.0,117720.0,1.49863372]
[1752962840904,0.8013749,117730.0,117720.0,1.82721114]
[1752962841207,0.8053749,117730.0,117720.0,1.82721114]
[1752962841602,0.51196,117730.0,117720.0,1.50821114]
[1752962841804,0.51196,117730.0,117720.0,1.54821114]
[1752962842008,0.57788,117730.0,117720.0,1.54821114]
[1752962843008,0.57788,117730.0,117720.0,1.9545673]
[1752962843715,0.7476729,117730.0,117720.0,1.9545673]
[1752962844708,0.57788,117730.0,117720.0,1.9545673]
[1752962844904,0.7476729,117730.0,117720.0,1.6973233]
[1752962845105,0.7476729,117730.0,117720.0,1.9545673]
[1752962846112,0.57788,117730.0,117720.0,1.9545673]
[1752962847910,0.57788,117730.0,117720.0,1.6973233]
[1752962848211,0.57788,117730.0,117720.0,1.9545673]
[1752962848912,0.7476729,117730.0,117720.0,1.9545673]
[1752962851707,0.7476729,117730.0,117720.0,1.6973233]
[1752962851913,0.7476729,117730.0,117720.0,1.9545673]
[1752962853321,0.7476729,117730.0,117720.0,1.6973233]
[1752962853615,0.8762949,117730.0,117720.0,1.9545673]
[1752962853815,0.8762949,117730.0,117720.0,1.6973233]
[1752962854118,0.8762949,117730.0,117720.0,1.7557853]
[1752962854713,0.7476729,117730.0,117720.0,1.8844073]
[1752962854919,0.8762949,117730.0,117720.0,1.8844073]
[1752962855120,0.8762949,117730.0,117720.0,1.6271633]
[1752962855318,0.8762949,117730.0,117720.0,1.8844073]
[1752962855615,0.8762949,117730.0,117720.0,0.43128984]
[1752962855921,1.3657169,117730.0,117720.0,0.001]
[1752962856220,1.38371005,117730.0,117720.0,0.001]
[1752962856714,0.1698217,117710.0,117700.0,0.489422]
[1752962856915,0.2534262,117700.0,117690.0,0.69317483]
[1752962857119,0.8747682,117700.0,117690.0,1.44990543]
[1752962858220,0.8757682,117700.0,117690.0,1.45818505]
[1752962858517,0.8757682,117700.0,117690.0,1.22181518]
[1752962858821,0.8757682,117700.0,117690.0,1.03228076]
[1752962859022,0.7471462,117700.0,117690.0,1.09319318]
[1752962859225,0.7471462,117700.0,117690.0,1.03228076]
[1752962859421,0.3871462,117700.0,117690.0,1.20213136]
[1752962859617,0.3881462,117700.0,117690.0,1.20213136]
[1752962861619,0.3881462,117700.0,117690.0,1.37370348]
[1752962863325,0.3881462,117700.0,117690.0,1.40998348]
[1752962865833,0.3881462,117700.0,117690.0,1.4708959]
[1752962867236,0.3881462,117700.0,117690.0,1.29932378]
[1752962867436,0.3881462,117700.0,117690.0,1.4708959]
[1752962870738,0.3881462,117700.0,117690.0,1.29932378]
[1752962870937,0.3881462,117700.0,117690.0,1.4708959]
[1752962871838,0.3881462,117700.0,117690.0,1.29932378]
[1752962872032,0.3881462,117700.0,117690.0,1.4708959]
[1752962879037,0.3881462,117700.0,117690.0,1.4279768]
[1752962881843,0.3881462,117700.0,117690.0,1.29932378]
[1752962882145,0.3881462,117700.0,117690.0,1.4279768]
[1752962884148,0.3881462,117700.0,117690.0,1.36706438]
[1752962885344,0.3881462,117700.0,117690.0,1.44320491]
[1752962893551,0.21831,117700.0,117690.0,1.44320491]
[1752962893749,0.13472,117700.0,117690.0,1.58185793]
[1752962897255,0.3045562,117700.0,117690.0,1.58185793]
[1752962897647,0.3045562,117700.0,117690.0,1.45320491]
[1752962899556,0.3470162,117700.0,117690.0,1.45320491]
[1752962900158,0.17718,117700.0,117690.0,1.45320491]
[1752962900354,0.13472,117700.0,117690.0,1.44320491]
[1752962900550,0.002,117700.0,117690.0,1.58185793]
[1752962901458,0.001,117700.0,117690.0,1.58185793]
[1752962901856,0.33547243,117710.0,117700.0,0.2207162]
[1752962902160,0.33547243,117710.0,117700.0,0.93206671]
[1752962902661,0.22605063,117710.0,117700.0,0.93206671]
[1752962903160,0.22905063,117710.0,117700.0,0.93206671]
[1752962905057,0.22905063,117710.0,117700.0,1.29286671]
[1752962905660,0.39887233,117710.0,117700.0,1.03556067]
[1752962905960,0.39887233,117710.0,117700.0,1.29286671]
[1752962906361,0.22905063,117710.0,117700.0,1.29286671]
[1752962908760,0.39887233,117710.0,117700.0,1.03556067]
[1752962909163,0.39887233,117710.0,117700.0,1.29286671]
[1752962916964,0.14501063,117710.0,117700.0,1.67286671]
[1752962917965,0.14501063,117710.0,117700.0,1.61195224]
[1752962918166,0.14401063,117710.0,117700.0,1.61195224]
[1752962918868,0.14301063,117710.0,117700.0,1.61195224]
[1752962919264,0.31283233,117710.0,117700.0,1.61195224]
[1752962920473,0.14301063,117710.0,117700.0,1.61195224]
[1752962921474,0.31283233,117710.0,117700.0,1.61195224]
[1752962922164,0.14301063,117710.0,117700.0,1.61195224]
[1752962922861,0.07836063,117710.0,117700.0,1.61195224]
[1752962923265,0.14301063,117710.0,117700.0,1.61195224]
[1752962923465,0.07836063,117710.0,117700.0,1.61195224]
[1752962923669,0.14301063,117710.0,117700.0,1.61195224]
[1752962923960,0.14301063,117710.0,117700.0,1.68809277]
[1752962924571,0.09660063,117710.0,117700.0,1.68809277]
[1752962924772,0.07836063,117710.0,117700.0,1.70681791]
[1752962926471,0.01796063,117710.0,117700.0,1.70681791]
[1752962933076,0.08014063,117710.0,117700.0,1.70681791]
[1752962936678,0.08014063,117710.0,117700.0,1.83547093]
[1752962936978,0.01796063,117710.0,117700.0,1.83547093]
[1752962937479,0.001,117710.0,117700.0,1.83547093]
[1752962937975,0.12634,117730.0,117720.0,0.2407873]
[1752962938278,0.45634,117730.0,117720.0,1.75533334]
[1752962938673,0.45634,117730.0,117720.0,2.19220521]
[1752962939579,0.45734,117730.0,117720.0,2.19220521]
[1752962940081,0.45734,117730.0,117720.0,2.32085823]
[1752962940279,0.13734,117730.0,117720.0,2.32085823]
[1752962940579,0.08224,117730.0,117720.0,2.24478636]
[1752962940779,0.12734,117730.0,117720.0,2.24478636]
[1752962941780,0.12734,117730.0,117720.0,2.32085823]
[1752962942182,0.12734,117730.0,117720.0,2.24478636]
[1752962946088,0.12734,117730.0,117720.0,2.30551791]
[1752962949199,0.12734,117730.0,117720.0,2.17686489]
[1752962950001,0.12734,117730.0,117720.0,2.30551791]
[1752962953605,0.12734,117730.0,117720.0,2.24478636]
[1752962956009,0.12734,117730.0,117720.0,2.32085823]
[1752962961506,0.12734,117730.0,117720.0,2.19220521]
[1752962962909,0.12734,117730.0,117720.0,2.32085823]
[1752962965914,0.12734,117730.0,117720.0,1.93489917]
[1752962966114,0.12734,117730.0,117720.0,2.19220521]
[1752962966414,0.12734,117730.0,117720.0,2.32085823]
[1752962966612,0.12734,117730.0,117720.0,1.93489917]
[1752962966812,0.12734,117730.0,117720.0,2.32085823]
[1752962969516,0.12734,117730.0,117720.0,2.32086598]
[1752962970516,0.12734,117730.0,117720.0,1.93490692]
[1752962970814,0.12734,117730.0,117720.0,2.32086598]
[1752962972308,0.12734,117730.0,117720.0,1.93490692]
[1752962972514,0.12734,117730.0,117720.0,2.32086598]
[1752962975516,0.12734,117730.0,117720.0,2.24478636]
[1752962977117,0.12734,117730.0,117720.0,2.32084653]
[1752962980015,0.12734,117730.0,117720.0,2.24478636]
[1752962980215,0.12734,117730.0,117720.0,2.32084742]
[1752962980420,0.12734,117730.0,117720.0,2.24478636]
[1752962981419,0.12734,117730.0,117720.0,2.32084265]
[1752962984212,0.2971329,117730.0,117720.0,2.32084265]
[1752962984418,0.3799129,117730.0,117720.0,1.34844359]
[1752962984613,0.8655078,117730.0,117720.0,0.60914931]
[1752962984817,0.8655078,117730.0,117720.0,0.68983629]
[1752962985018,0.8655078,117730.0,117720.0,0.81848931]
[1752962985217,0.8655078,117730.0,117720.0,1.17928931]
[1752962985520,0.8455078,117730.0,117720.0,1.17928931]
[1752962985721,0.8455078,117730.0,117720.0,1.34909661]
[1752962985921,0.8455078,117730.0,117720.0,1.97989265]
[1752962985922,0.12564,117730.0,117720.0,1.97989265]
[1752962986220,0.001,117730.0,117720.0,1.97989265]
[1752962986717,0.12464,117750.0,117740.0,0.1948684]
[1752962986924,0.49464,117750.0,117740.0,2.19503307]
[1752962987318,0.49464,117750.0,117740.0,2.13423199]
[1752962987617,0.49464,117750.0,117740.0,2.202801]
[1752962988923,0.49664,117750.0,117740.0,2.11684451]
[1752962989814,0.49864,117750.0,117740.0,1.53080451]
[1752962990014,0.49864,117750.0,117740.0,2.11680451]
[1752962990522,0.49864,117750.0,117740.0,2.17753456]
[1752963000027,0.08135,117750.0,117740.0,2.17753456]
[1752963000233,0.16263,117750.0,117740.0,2.11680451]
[1752963000431,0.06263,117750.0,117740.0,2.11680451]
[1752963002530,0.004,117750.0,117740.0,2.11680451]
[1752963003128,0.004,117750.0,117740.0,2.1928608]
[1752963003830,0.06274,117750.0,117740.0,2.11680451]
[1752963004131,0.06274,117750.0,117740.0,2.1928608]
[1752963004331,0.06274,117750.0,117740.0,2.11680451]
[1752963006029,0.06274,117750.0,117740.0,2.1928608]
[1752963006223,0.004,117750.0,117740.0,2.1928608]
[1752963007732,0.10983,117750.0,117740.0,2.1928608]
[1752963007929,0.004,117750.0,117740.0,2.1928608]
[1752963008529,0.06274,117750.0,117740.0,2.1928608]
[1752963009530,0.12775,117750.0,117740.0,2.1928608]
[1752963011130,0.004,117750.0,117740.0,2.40703456]
[1752963012829,0.06274,117750.0,117740.0,2.40703456]
[1752963013035,0.12775,117750.0,117740.0,2.40703456]
[1752963015131,0.004,117750.0,117740.0,2.40703456]
[1752963015637,0.004,117750.0,117740.0,2.33097827]
[1752963016533,0.004,117750.0,117740.0,2.51360374]
[1752963017035,0.004,117750.0,117740.0,2.40692872]
[1752963017538,0.004,117750.0,117740.0,2.33097827]
[1752963021343,0.004,117750.0,117740.0,2.43765329]
[1752963021739,0.004,117750.0,117740.0,2.33097827]
[1752963022837,0.004,117750.0,117740.0,2.40690465]
[1752963023033,0.12375,117760.0,117750.0,0.1886442]
[1752963023238,0.45375,117760.0,117750.0,1.72413974]
[1752963023633,0.11,117760.0,117750.0,1.85264751]
[1752963023842,0.13848324,117770.0,117760.0,0.2005097]
[1752963024137,0.48848324,117770.0,117760.0,1.41161266]
[1752963025640,0.47096,117770.0,117760.0,1.41161266]
[1752963025841,0.12096,117770.0,117760.0,1.79713597]
[1752963026040,0.12496,117770.0,117760.0,1.41161266]
[1752963026344,0.12796,117770.0,117760.0,1.33568628]
[1752963026543,0.12396,117770.0,117760.0,1.33568628]
[1752963026944,0.12096,117770.0,117760.0,1.29267405]
[1752963027242,0.12096,117770.0,117760.0,1.29367405]
[1752963028348,0.12096,117770.0,117760.0,1.95535113]
[1752963030752,0.19833,117770.0,117760.0,0.95116297]
[1752963030947,0.19833,117770.0,117760.0,1.70857851]
[1752963031948,0.19833,117770.0,117760.0,1.87983405]
[1752963032350,0.91932084,117770.0,117760.0,0.44119533]
[1752963032552,0.91932084,117770.0,117760.0,0.66655533]
[1752963032856,0.91932084,117770.0,117760.0,0.60601327]
[1752963033154,0.3780653,117770.0,117760.0,0.60601327]
[1752963033451,0.7180653,117770.0,117760.0,0.60601327]
[1752963033751,0.3780653,117770.0,117760.0,0.60653327]
[1752963033951,0.6880653,117770.0,117760.0,0.60653327]
[1752963035455,0.6880653,117770.0,117760.0,0.77628287]
[1752963036154,0.3780653,117770.0,117760.0,0.94753841]
[1752963037356,0.3780653,117770.0,117760.0,1.00808047]
[1752963038764,0.3780653,117770.0,117760.0,0.83682493]
[1752963039058,0.3780653,117770.0,117760.0,1.19762493]
[1752963039458,0.3780653,117770.0,117760.0,1.36888047]
[1752963040864,0.3780653,117770.0,117760.0,1.19762493]
[1752963041066,0.3780653,117770.0,117760.0,1.36888047]
[1752963041254,0.3780653,117770.0,117760.0,1.19762493]
[1752963041456,0.3780653,117770.0,117760.0,1.36888047]
[1752963043465,0.3780653,117770.0,117760.0,1.19762493]
[1752963043764,0.3780653,117770.0,117760.0,1.00808047]
[1752963044065,0.3780653,117770.0,117760.0,0.83682493]
[1752963044562,0.3780653,117770.0,117760.0,1.00808047]
[1752963045861,0.3780653,117770.0,117760.0,0.94753841]
[1752963046068,0.3780653,117770.0,117760.0,0.96100841]
[1752963046668,0.13096,117770.0,117760.0,1.88089601]
[1752963047069,0.05835,117770.0,117760.0,1.88089601]
[1752963047257,0.12096,117780.0,117770.0,0.3277901]
[1752963047457,0.45096,117780.0,117770.0,1.16984564]
[1752963048064,0.45096,117780.0,117770.0,1.2303877]
[1752963048260,0.45096,117780.0,117770.0,1.1879549]
[1752963048261,0.45296,117780.0,117770.0,1.1879549]
[1752963048663,0.45496,117780.0,117770.0,1.1879549]
[1752963050972,0.45496,117780.0,117770.0,1.19636698]
[1752963054076,0.004,117780.0,117770.0,1.13582492]
[1752963054279,0.004,117780.0,117770.0,1.19640206]
[1752963055477,0.004,117780.0,117770.0,1.13582492]
[1752963055868,0.06027,117780.0,117770.0,1.13582492]
[1752963058879,0.004,117780.0,117770.0,1.2115025]
[1752963062074,0.11907,117790.0,117780.0,0.1697208]
[1752963062280,0.11907,117790.0,117780.0,1.72354529]
[1752963063183,0.12207,117790.0,117780.0,1.72354529]
[1752963063784,0.15175,117790.0,117780.0,1.72354529]
[1752963063978,0.16023,117790.0,117780.0,1.72354529]
[1752963064174,0.20183,117790.0,117780.0,1.55228975]
[1752963064378,0.20183,117790.0,117780.0,1.72354529]
[1752963065485,0.12407,117790.0,117780.0,1.72354529]
[1752963066379,0.12407,117790.0,117780.0,1.6630385]
[1752963067988,0.12407,117790.0,117780.0,2.0238385]
[1752963071682,0.005,117790.0,117780.0,2.09951608]
[1752963071882,0.005,117790.0,117780.0,2.0238385]
[1752963072290,0.005,117790.0,117780.0,2.09951608]
[1752963073087,0.005,117790.0,117780.0,1.92826054]
[1752963073390,0.005,117790.0,117780.0,2.09951608]
[1752963074182,0.11907,117800.0,117790.0,0.1872164]
[1752963074390,0.07828,117820.0,117810.0,0.1970176]
[1752963074589,0.6657032,117820.0,117810.0,1.71100165]
[1752963074888,0.6657032,117820.0,117810.0,1.76737514]
[1752963075089,0.49604,117820.0,117810.0,1.76737514]
[1752963075284,0.49604,117820.0,117810.0,2.12817514]
[1752963075985,0.6657032,117820.0,117810.0,2.12817514]
[1752963076492,0.6832232,117820.0,117810.0,2.12817514]
[1752963076692,0.6852232,117820.0,117810.0,2.06753165]
[1752963077393,0.6862232,117820.0,117810.0,2.06753165]
[1752963077589,0.6862232,117820.0,117810.0,2.13981526]
[1752963078790,0.6862232,117820.0,117810.0,1.54705526]
[1752963078998,0.6862232,117820.0,117810.0,2.14001526]
[1752963079192,0.6862232,117820.0,117810.0,2.13952526]
[1752963079393,0.6862232,117820.0,117810.0,2.13574526]
[1752963080096,0.6862232,117820.0,117810.0,2.13991526]